[Event "ESTCC 65 2019"]
[Site "Mali Losinj"]
[Date "2019.09.22"]
[Round "5.18"]
[White "Woeber, Friedrich"]
[Black "Nielsen, Jorgen Lovgren"]
[Result "1/2-1/2"]
[ECO "A88"]
[WhiteElo "2126"]
[BlackElo "2052"]
[Annotator "NA"]
[PlyCount "128"]
[EventDate "2019.09.18"]
[EventType "team-tourn"]
[EventCountry "CRO"]
[SourceTitle "playchess.com"]
[Source "ChessBase"]
[SourceQuality "1"]
[WhiteTeam "Austria"]
[BlackTeam "Denmark"]
[WhiteTeamCountry "AUT"]
[BlackTeamCountry "DEN"]
[TimeControl "40/5400+30:1800+30"]

1. d4 {[%emt 0:00:30]} f5 {[%emt 0:00:30]} 2. Nf3 {[%emt 0:00:30]} Nf6 {[%emt 0:00:30]} 3. c4 {[%emt 0:03:30]} g6 {[%emt 0:00:30]} 4. Nc3 {[%emt 0:00:30]} d6 {[%emt 0:02:30]} 5. g3 {[%emt 0:02:30]} Bg7 {[%emt 0:00:30]} 6. Bg2 {[%emt 0:00:30]} O-O {[%emt 0:00:30]} 7. O-O {[%emt 0:00:30]} c6 {[%emt 0:01:30]} 8. d5 {[%emt 0:02:30]} Qc7 {[%emt 0:00:30]} 9. Re1 {[%emt 0:05:30]} Na6 {[%emt 0:08:30]} 10. Nd4 {[%emt 0:06:30]} Bd7 {[%emt 0:01:30]} 11. Nb3 {[%emt 0:05:30]} Rad8 {[%emt 0:03:30]} 12. e4 {[%emt 0:02:30]} Nxe4 {[%emt 0:10:30]} 13. Nxe4 {[%emt 0:02:30]} fxe4 {[%emt 0:00:30]} 14. Bxe4 {[%emt 0:00:30]} c5 {[%emt 0:05:30]} 15. Qe2 {[%emt 0:06:30]} Rde8 {[%emt 0:03:30]} 16. Bf4 {[%emt 0:06:30]} Kh8 {[%emt 0:02:30]} 17. Rad1 {[%emt 0:03:30]} e5 {[%emt 0:01:30]} 18. dxe6 {[%emt 0:00:30]} Rxe6 {[%emt 0:00:30]} 19. Qd2 {[%emt 0:04:30]} Rff6 {[%emt 0:03:30]} 20. Bd5 {[%emt 0:02:30]} Rxe1+ {[%emt 0:03:30]} 21. Rxe1 {[%emt 0:02:30]} Nb4 {[%emt 0:01:30]} 22. Bg2 {[%emt 0:02:30]} b6 {[%emt 0:09:30]} 23. Rd1 {[%emt 0:04:30]} Bg4 {[%emt 0:06:30]} 24. f3 {[%emt 0:07:30]} Be6 {[%emt 0:02:30]} 25. Bxd6 {[%emt 0:02:30]} Qd7 {[%emt 0:03:30]} 26. Be5 {[%emt 0:02:30]} Qxd2 {[%emt 0:00:30]} 27. Nxd2 {[%emt 0:01:30]} Rf7 {[%emt 0:01:30]} 28. Bxg7+ {[%emt 0:01:30]} Kxg7 {[%emt 0:00:00]} 29. Ne4 {[%emt 0:01:30]} Bxc4 {[%emt 0:07:00]} 30. Nd6 {[%emt 0:00:30]} Be2 {[%emt 0:00:30]} 31. Re1 {[%emt 0:06:07]} Re7 {[%emt 0:07:00]} 32. Bf1 {[%emt 0:00:30]} Re6 {[%emt 0:01:05]} 33. Rxe2 {[%emt 0:00:46]} Rxd6 {[%emt 0:00:23]} 34. Re7+ {[%emt 0:01:31]} Kf6 {[%emt 0:01:05]} 35. Rxa7 {[%emt 0:00:25]} Rd2 {[%emt 0:00:35]} 36. Bc4 {[%emt 0:03:58]} Rxb2 {[%emt 0:01:38]} 37. a3 {[%emt 0:02:23]} Nc6 {[%emt 0:03:03]} 38. Rxh7 {[%emt 0:01:29]} Ne5 {[%emt 0:02:04]} 39. Bd5 {[%emt 0:00:15]} Rd2 {[%emt 0:00:53]} 40. Be4 {[%emt 0:00:40]} Nf7 {[%emt 0:00:37]} 41. h4 {[%emt 0:31:09]} c4 {[%emt 0:32:24]} 42. g4 {[%emt 0:03:36]} g5 {[%emt 0:04:28]} 43. hxg5+ {[%emt 0:00:00]} Nxg5 {[%emt 0:00:00]} 44. Rc7 {[%emt 0:00:00]} Nxe4 {[%emt 0:00:00]} 45. fxe4 {[%emt 0:00:00]} Rd4 {[%emt 0:00:00]} 46. Rc6+ {[%emt 0:00:00]} Ke5 {[%emt 0:00:00]} 47. Kf2 {[%emt 0:00:00]} Rxe4 {[%emt 0:00:00]} 48. Kf3 {[%emt 0:00:00]} Rf4+ {[%emt 0:00:00]} 49. Ke3 {[%emt 0:00:00]} Rxg4 {[%emt 0:00:00]} 50. Rxb6 {[%emt 0:00:00]} Rg3+ {[%emt 0:00:00]} 51. Kd2 {[%emt 0:00:00]} Rxa3 {[%emt 0:00:00]} 52. Kc2 {[%emt 0:00:00]} Kd4 {[%emt 0:00:00]} 53. Rh6 {[%emt 0:00:00]} Ra2+ {[%emt 0:00:00]} 54. Kc1 {[%emt 0:00:00]} Rg2 {[%emt 0:00:00]} 55. Rh3 {[%emt 0:00:00]} Kc5 {[%emt 0:00:00]} 56. Rf3 {[%emt 0:00:00]} Kb4 {[%emt 0:00:00]} 57. Rh3 {[%emt 0:00:00]} c3 {[%emt 0:00:00]} 58. Rh8 {[%emt 0:00:00]} Rg5 {[%emt 0:00:00]} 59. Rb8+ {[%emt 0:00:00]} Rb5 {[%emt 0:00:00]} 60. Rxb5+ {[%emt 0:00:00]} Kxb5 {[%emt 0:00:00]} 61. Kc2 {[%emt 0:00:00]} Kc4 {[%emt 0:00:00]} 62. Kc1 {[%emt 0:00:00]} Kb3 {[%emt 0:00:00]} 63. Kb1 {[%emt 0:00:00]} c2+ {[%emt 0:00:00]} 64. Kc1 {[%emt 0:00:00]} Kc3 {[%emt 0:00:00]} 1/2-1/2

[Event "ESTCC 65 2019"]
[Site "Mali Losinj"]
[Date "2019.09.22"]
[Round "5.19"]
[White "Nielsen, Preben Lovgren"]
[Black "Titz, Heimo"]
[Result "1-0"]
[ECO "B47"]
[WhiteElo "2007"]
[BlackElo "1971"]
[Annotator "NA"]
[PlyCount "115"]
[EventDate "2019.09.18"]
[EventType "team-tourn"]
[EventCountry "CRO"]
[SourceTitle "playchess.com"]
[Source "ChessBase"]
[SourceQuality "1"]
[WhiteTeam "Denmark"]
[BlackTeam "Austria"]
[WhiteTeamCountry "DEN"]
[BlackTeamCountry "AUT"]
[TimeControl "40/5400+30:1800+30"]

1. e4 {[%emt 0:02:30]} c5 {[%emt 0:00:30]} 2. Nf3 {[%emt 0:00:00]} e6 {[%emt 0:00:00]} 3. d4 {[%emt 0:00:00]} cxd4 {[%emt 0:01:00]} 4. Nxd4 {[%emt 0:00:30]} Nc6 {[%emt 0:00:30]} 5. Nc3 {[%emt 0:00:30]} Qc7 {[%emt 0:00:00]} 6. Be2 {[%emt 0:00:30]} Nf6 {[%emt 0:00:00]} 7. O-O {[%emt 0:00:30]} a6 {[%emt 0:00:30]} 8. a3 {[%emt 0:01:30]} b5 {[%emt 0:03:30]} 9. Nxc6 {[%emt 0:03:30]} dxc6 {[%emt 0:00:30]} 10. f4 {[%emt 0:01:30]} Be7 {[%emt 0:23:30]} 11. e5 {[%emt 0:05:30]} Nd5 {[%emt 0:03:30]} 12. Ne4 {[%emt 0:00:30]} O-O {[%emt 0:01:30]} 13. Qd3 {[%emt 0:07:30]} Rd8 {[%emt 0:13:30]} 14. Qh3 {[%emt 0:01:30]} c5 {[%emt 0:03:30]} 15. Bd3 {[%emt 0:06:30]} g6 {[%emt 0:02:30]} 16. Nf2 {[%emt 0:05:30]} Bb7 {[%emt 0:05:30]} 17. Ng4 {[%emt 0:06:30]} h5 {[%emt 0:03:30]} 18. Nh6+ {[%emt 0:06:30]} Kg7 {[%emt 0:00:30]} 19. f5 {[%emt 0:00:30]} Qxe5 {[%emt 0:06:30]} 20. fxg6 {[%emt 0:02:30]} f5 {[%emt 0:00:30]} 21. Nf7 {[%emt 0:05:30]} Qd4+ {[%emt 0:01:30]} 22. Kh1 {[%emt 0:00:30]} Qg4 {[%emt 0:00:30]} 23. Bh6+ {[%emt 0:03:30]} Kf6 {[%emt 0:02:30]} 24. Bg5+ {[%emt 0:06:30]} Kg7 {[%emt 0:00:30]} 25. Qxg4 {[%emt 0:00:30]} hxg4 {[%emt 0:00:30]} 26. Nxd8 {[%emt 0:00:30]} Rxd8 {[%emt 0:00:30]} 27. Bxe7 {[%emt 0:00:30]} Nxe7 {[%emt 0:00:00]} 28. Rfd1 {[%emt 0:02:30]} Nd5 {[%emt 0:05:00]} 29. Bf1 {[%emt 0:02:30]} Kxg6 {[%emt 0:00:30]} 30. b3 {[%emt 0:02:30]} Re8 {[%emt 0:08:10]} 31. c4 {[%emt 0:01:30]} bxc4 {[%emt 0:02:25]} 32. bxc4 {[%emt 0:00:00]} Nf4 {[%emt 0:03:45]} 33. Rab1 {[%emt 0:02:00]} Re7 {[%emt 0:03:02]} 34. Rb6 {[%emt 0:00:30]} Kf6 {[%emt 0:00:44]} 35. Rbd6 {[%emt 0:00:30]} Nh3 {[%emt 0:02:32]} 36. R1d2 {[%emt 0:03:30]} Ng5 {[%emt 0:01:01]} 37. Rd7 {[%emt 0:00:30]} Ne4 {[%emt 0:00:26]} 38. Rxe7 {[%emt 0:01:30]} Kxe7 {[%emt 0:00:01]} 39. Rb2 {[%emt 0:00:30]} Nd6 {[%emt 0:00:20]} 40. Kg1 {[%emt 0:01:31]} e5 {[%emt 0:00:33]} 41. Bd3 {[%emt 0:32:44]} e4 {[%emt 0:31:26]} 42. Be2 {[%emt 0:00:38]} Ke6 {[%emt 0:01:12]} 43. Kf2 {[%emt 0:02:27]} Ke5 {[%emt 0:00:37]} 44. g3 {[%emt 0:01:57]} Kd4 {[%emt 0:02:08]} 45. Rd2+ {[%emt 0:01:54]} Ke5 {[%emt 0:00:10]} 46. Ke3 {[%emt 0:00:00]} Bc6 {[%emt 0:00:00]} 47. Rb2 {[%emt 0:00:00]} a5 {[%emt 0:00:00]} 48. Rb8 {[%emt 0:00:00]} Bd7 {[%emt 0:00:00]} 49. Ra8 {[%emt 0:00:00]} a4 {[%emt 0:00:00]} 50. Ra7 {[%emt 0:00:00]} Be8 {[%emt 0:00:00]} 51. Rc7 {[%emt 0:00:00]} f4+ {[%emt 0:00:00]} 52. gxf4+ {[%emt 0:00:00]} Ke6 {[%emt 0:00:00]} 53. Bxg4+ {[%emt 0:00:00]} Kf6 {[%emt 0:00:00]} 54. Rxc5 {[%emt 0:00:00]} Bg6 {[%emt 0:00:00]} 55. Rc6 {[%emt 0:00:00]} Ke7 {[%emt 0:00:00]} 56. c5 {[%emt 0:00:00]} Nc4+ {[%emt 0:00:00]} 57. Kd4 {[%emt 0:00:00]} Na5 {[%emt 0:00:00]} 58. Rxg6 {[%emt 0:00:00]} 1-0

[Event "ESTCC 65 2019"]
[Site "Mali Losinj"]
[Date "2019.09.22"]
[Round "5.20"]
[White "Strobel, Ferdinand"]
[Black "Fabrin, Morten"]
[Result "1/2-1/2"]
[ECO "A03"]
[WhiteElo "1956"]
[BlackElo "1998"]
[Annotator "NA"]
[PlyCount "90"]
[EventDate "2019.09.18"]
[EventType "team-tourn"]
[EventCountry "CRO"]
[SourceTitle "playchess.com"]
[Source "ChessBase"]
[SourceQuality "1"]
[WhiteTeam "Austria"]
[BlackTeam "Denmark"]
[WhiteTeamCountry "AUT"]
[BlackTeamCountry "DEN"]
[TimeControl "40/5400+30:1800+30"]

1. f4 {[%emt 0:00:30]} Nf6 {[%emt 0:00:30]} 2. Nf3 {[%emt 0:00:00]} d5 {[%emt 0:00:00]} 3. g3 {[%emt 0:00:00]} c5 {[%emt 0:00:00]} 4. d3 {[%emt 0:00:30]} g6 {[%emt 0:00:30]} 5. Bg2 {[%emt 0:00:30]} Bg7 {[%emt 0:01:30]} 6. O-O {[%emt 0:00:30]} O-O {[%emt 0:00:30]} 7. c3 {[%emt 0:00:30]} Nc6 {[%emt 0:01:30]} 8. h3 {[%emt 0:04:30]} d4 {[%emt 0:02:30]} 9. e4 {[%emt 0:02:30]} dxe3 {[%emt 0:01:30]} 10. Bxe3 {[%emt 0:00:30]} Qd6 {[%emt 0:01:30]} 11. Na3 {[%emt 0:06:30]} Bf5 {[%emt 0:04:30]} 12. d4 {[%emt 0:03:30]} cxd4 {[%emt 0:05:30]} 13. Nxd4 {[%emt 0:01:30]} Be4 {[%emt 0:02:30]} 14. Qe2 {[%emt 0:16:30]} Bxg2 {[%emt 0:03:30]} 15. Kxg2 {[%emt 0:06:30]} Nd5 {[%emt 0:02:30]} 16. Nf3 {[%emt 0:04:30]} Rad8 {[%emt 0:03:30]} 17. Bf2 {[%emt 0:11:30]} Nxc3 {[%emt 0:04:30]} 18. Qc2 {[%emt 0:01:30]} Nd5 {[%emt 0:03:30]} 19. Rad1 {[%emt 0:03:30]} Qb4 {[%emt 0:04:30]} 20. Nc4 {[%emt 0:06:30]} Rfe8 {[%emt 0:04:30]} 21. Rd3 {[%emt 0:09:42]} e6 {[%emt 0:02:30]} 22. Rfd1 {[%emt 0:03:20]} Na5 {[%emt 0:01:30]} 23. Nxa5 {[%emt 0:04:02]} Qxa5 {[%emt 0:00:30]} 24. Ra3 {[%emt 0:00:19]} Qb5 {[%emt 0:08:30]} 25. Rxa7 {[%emt 0:02:22]} Rc8 {[%emt 0:02:30]} 26. Qd3 {[%emt 0:03:10]} Qc6 {[%emt 0:01:30]} 27. Qb3 {[%emt 0:00:47]} b6 {[%emt 0:01:30]} 28. Rd2 {[%emt 0:01:22]} b5 {[%emt 0:02:30]} 29. a3 {[%emt 0:01:13]} Red8 {[%emt 0:02:30]} 30. Re2 {[%emt 0:01:14]} Nb6 {[%emt 0:01:30]} 31. Ra5 {[%emt 0:03:07]} Rd5 {[%emt 0:01:30]} 32. Ra6 {[%emt 0:00:39]} Qc4 {[%emt 0:00:30]} 33. Qxc4 {[%emt 0:00:26]} Nxc4 {[%emt 0:00:30]} 34. b3 {[%emt 0:00:35]} Nd6 {[%emt 0:00:30]} 35. Ne5 {[%emt 0:01:29]} Bxe5 {[%emt 0:02:30]} 36. fxe5 {[%emt 0:00:06]} Nf5 {[%emt 0:00:30]} 37. g4 {[%emt 0:00:35]} Nd4 {[%emt 0:00:30]} 38. Bxd4 {[%emt 0:00:44]} Rxd4 {[%emt 0:00:30]} 39. Re3 {[%emt 0:00:31]} Rc5 {[%emt 0:00:30]} 40. b4 {[%emt 0:01:09]} Rc2+ {[%emt 0:01:30]} 41. Kf3 {[%emt 0:30:24]} Rh2 {[%emt 0:30:30]} 42. Kg3 {[%emt 0:00:20]} Rdd2 {[%emt 0:00:00]} 43. Kf4 {[%emt 0:00:00]} Rd4+ {[%emt 0:00:00]} 44. Kg3 {[%emt 0:00:00]} Rhd2 {[%emt 0:00:00]} 45. Rc6 {[%emt 0:00:00]} Rd5 {[%emt 0:00:00]} 1/2-1/2

[Event "ESTCC 65 2019"]
[Site "Mali Losinj"]
[Date "2019.09.22"]
[Round "5.21"]
[White "Carlsten, Peter"]
[Black "Lohan, Martin"]
[Result "1/2-1/2"]
[ECO "C05"]
[WhiteElo "1986"]
[BlackElo "1796"]
[Annotator "NA"]
[PlyCount "64"]
[EventDate "2019.09.18"]
[EventType "team-tourn"]
[EventCountry "CRO"]
[SourceTitle "playchess.com"]
[Source "ChessBase"]
[SourceQuality "1"]
[WhiteTeam "Sweden"]
[BlackTeam "Ireland"]
[WhiteTeamCountry "SWE"]
[BlackTeamCountry "IRL"]
[TimeControl "40/5400+30:1800+30"]

1. e4 {[%emt 0:00:30]} e6 {[%emt 0:00:30]} 2. d4 {[%emt 0:00:00]} d5 {[%emt 0:00:00]} 3. Nd2 {[%emt 0:00:00]} Nf6 {[%emt 0:01:00]} 4. e5 {[%emt 0:00:30]} Nfd7 {[%emt 0:00:00]} 5. c3 {[%emt 0:00:00]} c5 {[%emt 0:00:00]} 6. f4 {[%emt 0:00:00]} Nc6 {[%emt 0:00:30]} 7. Ndf3 {[%emt 0:00:30]} Rb8 {[%emt 0:04:30]} 8. Bd3 {[%emt 0:02:30]} b5 {[%emt 0:02:30]} 9. Ne2 {[%emt 0:01:30]} Qb6 {[%emt 0:01:30]} 10. O-O {[%emt 0:01:30]} b4 {[%emt 0:01:30]} 11. Kh1 {[%emt 0:02:30]} Ba6 {[%emt 0:01:30]} 12. f5 {[%emt 0:03:30]} cxd4 {[%emt 0:03:30]} 13. cxd4 {[%emt 0:01:30]} Bxd3 {[%emt 0:01:30]} 14. Qxd3 {[%emt 0:00:30]} Qb5 {[%emt 0:07:30]} 15. Qxb5 {[%emt 0:36:30]} Rxb5 {[%emt 0:00:00]} 16. fxe6 {[%emt 0:00:00]} fxe6 {[%emt 0:00:00]} 17. Ng5 {[%emt 0:01:00]} Nd8 {[%emt 0:01:30]} 18. Nf4 {[%emt 0:00:30]} Ke7 {[%emt 0:03:30]} 19. Be3 {[%emt 0:01:30]} g6 {[%emt 0:15:30]} 20. Rac1 {[%emt 0:04:30]} Bh6 {[%emt 0:02:30]} 21. Nd3 {[%emt 0:05:30]} Bg7 {[%emt 0:06:30]} 22. Rc7 {[%emt 0:02:30]} h6 {[%emt 0:08:30]} 23. Nc5 {[%emt 0:01:30]} Rxc5 {[%emt 0:00:30]} 24. dxc5 {[%emt 0:00:30]} Bxe5 {[%emt 0:01:30]} 25. Rc8 {[%emt 0:03:30]} hxg5 {[%emt 0:02:30]} 26. c6 {[%emt 0:13:38]} Rxh2+ {[%emt 0:29:20]} 27. Kg1 {[%emt 0:00:55]} Rh8 {[%emt 0:00:49]} 28. cxd7 {[%emt 0:06:48]} Kxd7 {[%emt 0:00:35]} 29. Ra8 {[%emt 0:00:51]} Bh2+ {[%emt 0:00:53]} 30. Kf2 {[%emt 0:00:15]} Rf8+ {[%emt 0:00:20]} 31. Ke2 {[%emt 0:00:04]} Rxf1 {[%emt 0:00:19]} 32. Kxf1 {[%emt 0:00:04]} Nc6 {[%emt 0:01:04]} 1/2-1/2

[Event "ESTCC 65 2019"]
[Site "Mali Losinj"]
[Date "2019.09.22"]
[Round "5.22"]
[White "Egan, Colm"]
[Black "Ahlstrom, Per"]
[Result "0-1"]
[ECO "A45"]
[WhiteElo "1710"]
[BlackElo "1838"]
[Annotator "NA"]
[PlyCount "76"]
[EventDate "2019.09.18"]
[EventType "team-tourn"]
[EventCountry "CRO"]
[SourceTitle "playchess.com"]
[Source "ChessBase"]
[SourceQuality "1"]
[WhiteTeam "Ireland"]
[BlackTeam "Sweden"]
[WhiteTeamCountry "IRL"]
[BlackTeamCountry "SWE"]
[TimeControl "40/5400+30:1800+30"]

1. d4 {[%emt 0:00:30]} Nf6 {[%emt 0:00:30]} 2. Bg5 {[%emt 0:00:00]} e6 {[%emt 0:00:30]} 3. Bxf6 {[%emt 0:01:00]} Qxf6 {[%emt 0:00:30]} 4. e4 {[%emt 0:00:30]} d6 {[%emt 0:09:30]} 5. Nf3 {[%emt 0:03:30]} e5 {[%emt 0:08:30]} 6. Nc3 {[%emt 0:03:30]} c6 {[%emt 0:06:30]} 7. Qd2 {[%emt 0:05:30]} Be7 {[%emt 0:02:30]} 8. h3 {[%emt 0:00:30]} Nd7 {[%emt 0:02:30]} 9. d5 {[%emt 0:03:30]} Nb6 {[%emt 0:04:30]} 10. Be2 {[%emt 0:09:30]} Bd7 {[%emt 0:03:30]} 11. O-O-O {[%emt 0:05:30]} Rc8 {[%emt 0:02:30]} 12. g4 {[%emt 0:03:30]} g6 {[%emt 0:02:30]} 13. Kb1 {[%emt 0:00:30]} Qg7 {[%emt 0:05:30]} 14. g5 {[%emt 0:05:30]} h5 {[%emt 0:14:30]} 15. h4 {[%emt 0:04:30]} O-O {[%emt 0:07:30]} 16. Qe3 {[%emt 0:10:30]} Rc7 {[%emt 0:02:30]} 17. Nd2 {[%emt 0:05:30]} Rfc8 {[%emt 0:02:30]} 18. dxc6 {[%emt 0:07:30]} bxc6 {[%emt 0:01:30]} 19. Ba6 {[%emt 0:02:30]} Rb8 {[%emt 0:00:30]} 20. Nb3 {[%emt 0:01:30]} Be6 {[%emt 0:02:38]} 21. Qe2 {[%emt 0:05:30]} d5 {[%emt 0:02:30]} 22. exd5 {[%emt 0:00:30]} Nxd5 {[%emt 0:02:27]} 23. Nxd5 {[%emt 0:02:37]} cxd5 {[%emt 0:00:14]} 24. Rhe1 {[%emt 0:03:04]} Rb6 {[%emt 0:01:36]} 25. c3 {[%emt 0:02:07]} e4 {[%emt 0:02:55]} 26. Rd4 {[%emt 0:01:16]} Bc5 {[%emt 0:01:31]} 27. Nxc5 {[%emt 0:01:37]} Rxc5 {[%emt 0:00:04]} 28. Qf1 {[%emt 0:00:32]} Rxc3 {[%emt 0:01:23]} 29. Rd2 {[%emt 0:01:07]} Rc5 {[%emt 0:00:38]} 30. Rc1 {[%emt 0:01:49]} Ra5 {[%emt 0:00:23]} 31. Bc8 {[%emt 0:00:52]} Bxc8 {[%emt 0:02:25]} 32. Rxc8+ {[%emt 0:00:12]} Kh7 {[%emt 0:00:03]} 33. Qe1 {[%emt 0:00:53]} Rab5 {[%emt 0:00:21]} 34. Qc1 {[%emt 0:01:11]} Qe5 {[%emt 0:01:04]} 35. Rc7 {[%emt 0:00:23]} Rxb2+ {[%emt 0:01:16]} 36. Rxb2 {[%emt 0:01:08]} Rxb2+ {[%emt 0:00:06]} 37. Qxb2 {[%emt 0:00:23]} Qxc7 {[%emt 0:00:05]} 38. Qd4 {[%emt 0:00:30]} Qb6+ {[%emt 0:00:31]} 0-1

[Event "ESTCC 65 2019"]
[Site "Mali Losinj"]
[Date "2019.09.22"]
[Round "5.23"]
[White "Dalling, Peter"]
[Black "Cassidy, Sydney"]
[Result "1-0"]
[ECO "B22"]
[WhiteElo "1824"]
[BlackElo "1599"]
[Annotator "NA"]
[PlyCount "51"]
[EventDate "2019.09.18"]
[EventType "team-tourn"]
[EventCountry "CRO"]
[SourceTitle "playchess.com"]
[Source "ChessBase"]
[SourceQuality "1"]
[WhiteTeam "Sweden"]
[BlackTeam "Ireland"]
[WhiteTeamCountry "SWE"]
[BlackTeamCountry "IRL"]
[TimeControl "40/5400+30:1800+30"]

1. e4 {[%emt 0:00:30]} c5 {[%emt 0:00:30]} 2. Nf3 {[%emt 0:00:00]} d6 {[%emt 0:00:00]} 3. d4 {[%emt 0:00:00]} cxd4 {[%emt 0:00:00]} 4. c3 {[%emt 0:00:00]} Nf6 {[%emt 0:01:30]} 5. Bd3 {[%emt 0:00:00]} e6 {[%emt 0:01:30]} 6. O-O {[%emt 0:00:30]} Be7 {[%emt 0:01:30]} 7. cxd4 {[%emt 0:01:30]} O-O {[%emt 0:00:30]} 8. Nc3 {[%emt 0:00:30]} Nc6 {[%emt 0:00:30]} 9. h3 {[%emt 0:01:30]} b6 {[%emt 0:02:30]} 10. Qe2 {[%emt 0:01:30]} Bb7 {[%emt 0:01:30]} 11. Be3 {[%emt 0:00:30]} Re8 {[%emt 0:01:30]} 12. Rac1 {[%emt 0:00:30]} Rc8 {[%emt 0:05:30]} 13. Rfd1 {[%emt 0:00:00]} Rc7 {[%emt 0:02:30]} 14. Bb5 {[%emt 0:02:00]} d5 {[%emt 0:03:30]} 15. e5 {[%emt 0:01:30]} Nd7 {[%emt 0:01:30]} 16. Bf4 {[%emt 0:03:30]} Qa8 {[%emt 0:04:30]} 17. Nxd5 {[%emt 0:04:30]} exd5 {[%emt 0:06:30]} 18. e6 {[%emt 0:00:30]} Nxd4 {[%emt 0:06:30]} 19. Nxd4 {[%emt 0:00:30]} Rxc1 {[%emt 0:02:30]} 20. Rxc1 {[%emt 0:00:30]} Nc5 {[%emt 0:08:30]} 21. exf7+ {[%emt 0:02:30]} Kxf7 {[%emt 0:00:30]} 22. Bxe8+ {[%emt 0:00:30]} Kxe8 {[%emt 0:03:30]} 23. b4 {[%emt 0:03:30]} Ne4 {[%emt 0:03:30]} 24. f3 {[%emt 0:01:30]} Bxb4 {[%emt 0:01:30]} 25. fxe4 {[%emt 0:00:00]} dxe4 {[%emt 0:00:30]} 26. Qb5+ {[%emt 0:02:00]} 1-0

[Event "ESTCC 65 2019"]
[Site "Mali Losinj"]
[Date "2019.09.22"]
[Round "5.24"]
[White "Durkan, Joe"]
[Black "Palsson, Bertil"]
[Result "1-0"]
[ECO "B22"]
[WhiteElo "1459"]
[BlackElo "1784"]
[Annotator "NA"]
[PlyCount "57"]
[EventDate "2019.09.18"]
[EventType "team-tourn"]
[EventCountry "CRO"]
[SourceTitle "playchess.com"]
[Source "ChessBase"]
[SourceQuality "1"]
[WhiteTeam "Ireland"]
[BlackTeam "Sweden"]
[WhiteTeamCountry "IRL"]
[BlackTeamCountry "SWE"]
[TimeControl "40/5400+30:1800+30"]

1. e4 {[%emt 0:00:30]} d5 {[%emt 0:00:30]} 2. e5 {[%emt 0:00:30]} c5 {[%emt 0:00:00]} 3. c3 {[%emt 0:01:30]} Bf5 {[%emt 0:07:00]} 4. Nf3 {[%emt 0:01:30]} Nc6 {[%emt 0:00:30]} 5. d4 {[%emt 0:01:30]} c4 {[%emt 0:03:30]} 6. Nh4 {[%emt 0:02:30]} e6 {[%emt 0:00:30]} 7. Nxf5 {[%emt 0:02:30]} exf5 {[%emt 0:00:30]} 8. g3 {[%emt 0:00:00]} f6 {[%emt 0:04:30]} 9. exf6 {[%emt 0:01:00]} Nxf6 {[%emt 0:00:30]} 10. Bh3 {[%emt 0:04:30]} g6 {[%emt 0:05:30]} 11. O-O {[%emt 0:00:30]} Be7 {[%emt 0:04:30]} 12. Qe2 {[%emt 0:01:30]} Qd7 {[%emt 0:01:30]} 13. Re1 {[%emt 0:04:30]} O-O-O {[%emt 0:01:30]} 14. Bf4 {[%emt 0:04:30]} Rde8 {[%emt 0:06:30]} 15. Qc2 {[%emt 0:02:30]} Bd6 {[%emt 0:01:30]} 16. Rxe8+ {[%emt 0:03:30]} Rxe8 {[%emt 0:00:30]} 17. Be3 {[%emt 0:00:30]} Ne4 {[%emt 0:01:30]} 18. Nd2 {[%emt 0:00:30]} h6 {[%emt 0:01:30]} 19. Nf1 {[%emt 0:02:30]} Kb8 {[%emt 0:05:30]} 20. Re1 {[%emt 0:14:30]} Qf7 {[%emt 0:03:30]} 21. Qc1 {[%emt 0:02:30]} Rh8 {[%emt 0:05:30]} 22. Bf4 {[%emt 0:02:30]} g5 {[%emt 0:06:30]} 23. Bxd6+ {[%emt 0:02:30]} Nxd6 {[%emt 0:00:00]} 24. Re2 {[%emt 0:11:30]} g4 {[%emt 0:07:00]} 25. Qf4 {[%emt 0:01:30]} Kc7 {[%emt 0:00:30]} 26. Bg2 {[%emt 0:01:30]} Kd7 {[%emt 0:01:30]} 27. Ne3 {[%emt 0:00:30]} Ne7 {[%emt 0:00:30]} 28. Qe5 {[%emt 0:02:30]} Ne4 {[%emt 0:02:30]} 29. Qxh8 {[%emt 0:02:30]} 1-0

[Event "ESTCC 65 2019"]
[Site "Mali Losinj"]
[Date "2019.09.22"]
[Round "5.25"]
[White "Kolbak, Jens"]
[Black "Peltola, Leo"]
[Result "1-0"]
[ECO "E14"]
[WhiteElo "2173"]
[BlackElo "1966"]
[Annotator "NA"]
[PlyCount "97"]
[EventDate "2019.09.18"]
[EventType "team-tourn"]
[EventCountry "CRO"]
[SourceTitle "playchess.com"]
[Source "ChessBase"]
[SourceQuality "1"]
[WhiteTeam "Denmark"]
[BlackTeam "Finland"]
[WhiteTeamCountry "DEN"]
[BlackTeamCountry "FIN"]
[TimeControl "40/5400+30:1800+30"]

1. d4 {[%emt 0:00:30]} Nf6 {[%emt 0:00:30]} 2. Nf3 {[%emt 0:00:00]} d5 {[%emt 0:00:00]} 3. c4 {[%emt 0:00:00]} e6 {[%emt 0:00:00]} 4. e3 {[%emt 0:02:30]} b6 {[%emt 0:01:30]} 5. Nc3 {[%emt 0:00:30]} Bb7 {[%emt 0:00:30]} 6. cxd5 {[%emt 0:01:30]} exd5 {[%emt 0:00:30]} 7. Bd3 {[%emt 0:03:30]} Be7 {[%emt 0:01:30]} 8. O-O {[%emt 0:00:30]} Nbd7 {[%emt 0:00:30]} 9. Qc2 {[%emt 0:02:30]} O-O {[%emt 0:02:30]} 10. Ne5 {[%emt 0:11:30]} c5 {[%emt 0:02:30]} 11. Bf5 {[%emt 0:08:30]} g6 {[%emt 0:03:30]} 12. Nxd7 {[%emt 0:00:30]} Nxd7 {[%emt 0:00:30]} 13. Bh3 {[%emt 0:00:00]} Bf6 {[%emt 0:02:30]} 14. Qa4 {[%emt 0:05:00]} Nb8 {[%emt 0:04:30]} 15. Rd1 {[%emt 0:00:00]} Bc6 {[%emt 0:01:30]} 16. Qc2 {[%emt 0:03:00]} c4 {[%emt 0:04:30]} 17. e4 {[%emt 0:11:30]} Na6 {[%emt 0:04:30]} 18. a3 {[%emt 0:05:30]} Nc7 {[%emt 0:02:30]} 19. e5 {[%emt 0:02:30]} Bg7 {[%emt 0:00:00]} 20. Be3 {[%emt 0:02:30]} Bd7 {[%emt 0:02:00]} 21. Bxd7 {[%emt 0:00:30]} Qxd7 {[%emt 0:00:30]} 22. a4 {[%emt 0:05:30]} a6 {[%emt 0:02:30]} 23. b3 {[%emt 0:03:30]} b5 {[%emt 0:00:30]} 24. bxc4 {[%emt 0:00:30]} bxc4 {[%emt 0:00:30]} 25. Rab1 {[%emt 0:00:30]} Rfb8 {[%emt 0:02:30]} 26. Rb2 {[%emt 0:00:30]} a5 {[%emt 0:12:30]} 27. Rdb1 {[%emt 0:00:30]} Rxb2 {[%emt 0:02:30]} 28. Qxb2 {[%emt 0:01:30]} Na6 {[%emt 0:03:30]} 29. Qb5 {[%emt 0:02:30]} Qxb5 {[%emt 0:00:30]} 30. Rxb5 {[%emt 0:00:00]} Nb4 {[%emt 0:03:30]} 31. Kf1 {[%emt 0:02:00]} Bf8 {[%emt 0:01:30]} 32. Ke2 {[%emt 0:02:30]} Nc2 {[%emt 0:07:30]} 33. Nxd5 {[%emt 0:01:30]} Bb4 {[%emt 0:00:30]} 34. Kd1 {[%emt 0:08:53]} Na3 {[%emt 0:03:30]} 35. Rb7 {[%emt 0:00:24]} Bf8 {[%emt 0:01:30]} 36. Nf6+ {[%emt 0:06:13]} Kg7 {[%emt 0:00:30]} 37. Bc1 {[%emt 0:01:08]} Rd8 {[%emt 0:03:30]} 38. Nd7 {[%emt 0:00:34]} Bb4 {[%emt 0:00:30]} 39. Bxa3 {[%emt 0:00:15]} Bxa3 {[%emt 0:00:30]} 40. Kc2 {[%emt 0:00:08]} Bb4 {[%emt 0:00:30]} 41. d5 {[%emt 0:32:07]} h5 {[%emt 0:31:30]} 42. d6 {[%emt 0:03:04]} g5 {[%emt 0:00:30]} 43. Nb6 {[%emt 0:01:10]} c3 {[%emt 0:03:30]} 44. Nd5 {[%emt 0:02:42]} Kg6 {[%emt 0:01:30]} 45. Nxb4 {[%emt 0:00:26]} axb4 {[%emt 0:00:30]} 46. Rxb4 {[%emt 0:00:03]} Kf5 {[%emt 0:00:00]} 47. Rb5 {[%emt 0:01:06]} f6 {[%emt 0:01:06]} 48. exf6+ {[%emt 0:00:44]} Kxf6 {[%emt 0:00:24]} 49. a5 {[%emt 0:01:12]} 1-0